[Event "36th Indian-ch U13 Girls 2023"]
[Site "Secunderabad"]
[Date "2023.12.09"]
[Round "10.4"]
[White "Gorli Nyna"]
[Black "Vaishnavi S K"]
[Result "1/2-1/2"]
[ECO "C54"]
[WhiteElo "1652"]
[BlackElo "1417"]
[Annotator "NA RC"]
[PlyCount "74"]
[EventDate "2023.12.04"]
[EventType "swiss"]
[EventCountry "IND"]
[SourceTitle "playchess.com"]
[Source "ChessBase"]
[SourceQuality "1"]
[TimeControl "5400+30"]

1. e4 {[%emt 0:00:02]} e5 {[%emt 0:00:27]} 2. Nf3 {[%emt 0:00:05]} Nc6 {[%emt 0:00:05]} 3. Bc4 {[%emt 0:00:05]} Bc5 {[%emt 0:00:07]} 4. c3 {[%emt 0:00:06]} Nf6 {[%emt 0:00:06]} 5. d3 {[%emt 0:00:05]} d6 {[%emt 0:00:08]} 6. O-O {[%emt 0:00:07]} O-O {[%emt 0:00:04]} 7. h3 {[%emt 0:00:03]} h6 {[%emt 0:00:05]} 8. Nbd2 {[%emt 0:00:04]} a6 {[%emt 0:00:05]} 9. a4 {[%emt 0:00:22]} Ba7 {[%emt 0:00:37]} 10. Re1 {[%emt 0:00:06]} Kh8 {[%emt 0:01:59]} 11. Nf1 {[%emt 0:00:52]} Nh7 {[%emt 0:06:12]} 12. d4 {[%emt 0:07:08]} exd4 {[%emt 0:16:15]} 13. cxd4 {[%emt 0:00:03]} f5 {[%emt 0:07:49]} 14. e5 {[%emt 1:28:22]} d5 {[%emt 0:06:56]} 15. Ba2 {[%emt 0:00:00]} f4 {[%emt 0:01:54]} 16. Bb1 {[%emt 0:00:00]} Be6 {[%emt 0:08:44]} 17. b3 {[%emt 0:00:00]} g5 {[%emt 0:47:27]} 18. g4 {[%emt 0:00:00]} Qd7 {[%emt 0:00:00]} 19. Qd3 {[%emt 0:00:00]} Rg8 {[%emt 0:00:00]} 20. Qxh7+ {[%emt 0:00:00]} Qxh7 {[%emt 0:00:00]} 21. Bxh7 {[%emt 0:00:00]} Kxh7 {[%emt 0:00:00]} 22. Bb2 {[%emt 0:00:00]} Kg6 {[%emt 0:00:00]} 23. Rac1 {[%emt 0:00:00]} Rg7 {[%emt 0:00:00]} 24. Red1 {[%emt 0:00:00]} Rh7 {[%emt 0:00:00]} 25. Bc3 {[%emt 0:00:00]} a5 {[%emt 0:00:00]} 26. Bb2 {[%emt 0:00:00]} Bb6 {[%emt 0:00:00]} 27. Ba3 {[%emt 0:00:00]} h5 {[%emt 0:00:00]} 28. N1h2 {[%emt 0:00:00]} hxg4 {[%emt 0:00:00]} 29. hxg4 {[%emt 0:00:00]} Rah8 {[%emt 0:00:00]} 30. Bb2 {[%emt 0:00:00]} Rh3 {[%emt 0:00:00]} 31. Kg2 {[%emt 0:00:00]} R3h7 {[%emt 0:07:00]} 32. Kg1 {[%emt 0:00:00]} Ne7 {[%emt 0:00:00]} 33. Kg2 {[%emt 0:00:00]} Ng8 {[%emt 0:00:00]} 34. Rg1 {[%emt 0:00:00]} Rh3 {[%emt 0:00:00]} 35. Rh1 {[%emt 0:00:00]} R3h7 {[%emt 0:00:00]} 36. Rhg1 {[%emt 0:00:00]} Rh3 {[%emt 0:00:00]} 37. Rc2 {[%emt 0:00:12]} R3h7 {[%emt 0:03:00]} 1/2-1/2

[Event "36th Indian-ch U13 Girls 2023"]
[Site "Secunderabad"]
[Date "2023.12.09"]
[Round "10.5"]
[White "Kalyani Sirin"]
[Black "Sravyasree Bheemarasetty"]
[Result "1-0"]
[ECO "C45"]
[WhiteElo "1802"]
[BlackElo "1455"]
[Annotator "NA RC"]
[PlyCount "119"]
[EventDate "2023.12.04"]
[EventType "swiss"]
[EventCountry "IND"]
[SourceTitle "playchess.com"]
[Source "ChessBase"]
[SourceQuality "1"]
[TimeControl "5400+30"]

1. e4 {[%emt 0:00:03]} e5 {[%emt 0:00:13]} 2. Nf3 {[%emt 0:00:08]} Nc6 {[%emt 0:00:19]} 3. d4 {[%emt 0:00:04]} exd4 {[%emt 0:00:35]} 4. Nxd4 {[%emt 0:00:07]} Bc5 {[%emt 0:00:20]} 5. Nb3 {[%emt 0:00:06]} Bb6 {[%emt 0:00:22]} 6. Nc3 {[%emt 0:00:06]} d6 {[%emt 0:00:27]} 7. Qe2 {[%emt 0:00:16]} Nf6 {[%emt 0:00:57]} 8. Bg5 {[%emt 0:05:08]} h6 {[%emt 0:02:13]} 9. Bh4 {[%emt 0:00:15]} Nd4 {[%emt 0:01:55]} 10. Qd2 {[%emt 0:04:09]} Nxb3 {[%emt 0:02:18]} 11. axb3 {[%emt 0:00:06]} Qe7 {[%emt 0:02:13]} 12. f3 {[%emt 0:03:42]} Be6 {[%emt 0:01:23]} 13. Bc4 {[%emt 0:05:21]} g5 {[%emt 0:03:14]} 14. Bg3 {[%emt 0:00:47]} O-O-O {[%emt 0:04:39]} 15. Na4 {[%emt 0:01:29]} Bxc4 {[%emt 0:20:24]} 16. Nxb6+ {[%emt 0:04:55]} axb6 {[%emt 0:04:22]} 17. bxc4 {[%emt 0:00:09]} Nh5 {[%emt 0:01:07]} 18. Bf2 {[%emt 0:05:20]} Qe6 {[%emt 0:09:15]} 19. b3 {[%emt 0:05:18]} f5 {[%emt 0:01:37]} 20. Qd5 {[%emt 0:09:07]} Qxd5 {[%emt 0:01:21]} 21. exd5 {[%emt 0:00:03]} Rde8+ {[%emt 0:00:12]} 22. Kf1 {[%emt 0:00:41]} g4 {[%emt 0:05:43]} 23. Bd4 {[%emt 0:01:56]} Rhf8 {[%emt 0:00:44]} 24. Kf2 {[%emt 0:00:39]} Rg8 {[%emt 0:11:25]} 25. Rhe1 {[%emt 0:02:19]} Kd7 {[%emt 0:05:04]} 26. Rxe8 {[%emt 0:08:54]} Rxe8 {[%emt 0:00:20]} 27. g3 {[%emt 0:03:46]} Rg8 {[%emt 0:07:53]} 28. f4 {[%emt 0:01:15]} Rf8 {[%emt 0:01:34]} 29. h3 {[%emt 0:04:24]} gxh3 {[%emt 0:01:28]} 30. Rh1 {[%emt 0:00:09]} Nf6 {[%emt 0:00:11]} 31. Bxf6 {[%emt 0:00:28]} Rxf6 {[%emt 0:00:01]} 32. Rxh3 {[%emt 0:00:08]} c6 {[%emt 0:00:29]} 33. Kf3 {[%emt 0:01:09]} cxd5 {[%emt 0:03:02]} 34. cxd5 {[%emt 0:00:01]} Ke7 {[%emt 0:00:54]} 35. g4 {[%emt 0:02:25]} fxg4+ {[%emt 0:02:44]} 36. Kxg4 {[%emt 0:00:02]} Kf7 {[%emt 0:00:31]} 37. f5 {[%emt 0:00:20]} Kg7 {[%emt 0:00:42]} 38. Re3 {[%emt 0:03:01]} Rf7 {[%emt 0:00:51]} 39. Re4 {[%emt 0:00:37]} Rc7 {[%emt 0:01:51]} 40. Re6 {[%emt 0:04:40]} Rd7 {[%emt 0:00:20]} 41. Rg6+ {[%emt 0:00:21]} Kh7 {[%emt 0:00:41]} 42. Kh5 {[%emt 0:00:24]} b5 {[%emt 0:00:24]} 43. f6 {[%emt 0:00:23]} b4 {[%emt 0:00:47]} 44. Rxh6+ {[%emt 0:00:08]} Kg8 {[%emt 0:00:03]} 45. Kg6 {[%emt 0:00:12]} b5 {[%emt 0:00:14]} 46. f7+ {[%emt 0:02:19]} Rxf7 {[%emt 0:00:06]} 47. Rh8+ {[%emt 0:00:04]} Kxh8 {[%emt 0:00:08]} 48. Kxf7 {[%emt 0:00:05]} Kh7 {[%emt 0:00:05]} 49. Ke6 {[%emt 0:00:06]} Kg6 {[%emt 0:00:08]} 50. Kxd6 {[%emt 0:00:04]} Kf5 {[%emt 0:00:05]} 51. Kc6 {[%emt 0:01:20]} Ke5 {[%emt 0:00:06]} 52. d6 {[%emt 0:00:03]} Kd4 {[%emt 0:00:04]} 53. d7 {[%emt 0:00:05]} Kc3 {[%emt 0:08:56]} 54. d8=Q {[%emt 0:00:07]} Kxc2 {[%emt 0:00:00]} 55. Kxb5 {[%emt 0:00:03]} Kxb3 {[%emt 0:00:00]} 56. Qd3+ {[%emt 0:00:04]} Kb2 {[%emt 0:00:00]} 57. Kxb4 {[%emt 0:00:09]} Ka1 {[%emt 0:00:00]} 58. Qd2 {[%emt 0:00:42]} Kb1 {[%emt 0:00:00]} 59. Kc3 {[%emt 0:00:04]} Ka1 {[%emt 0:00:00]} 60. Qb2# {[%emt 0:00:04]} 1-0

[Event "36th Indian-ch U13 Girls 2023"]
[Site "Secunderabad"]
[Date "2023.12.09"]
[Round "10.6"]
[White "Siddhi Rao"]
[Black "Arshiya Das"]
[Result "0-1"]
[ECO "B06"]
[WhiteElo "1467"]
[BlackElo "1729"]
[Annotator "NA RC"]
[PlyCount "76"]
[EventDate "2023.12.04"]
[EventType "swiss"]
[EventCountry "IND"]
[SourceTitle "playchess.com"]
[Source "ChessBase"]
[SourceQuality "1"]
[TimeControl "5400+30"]

1. e4 {[%emt 0:00:09]} g6 {[%emt 0:00:03]} 2. d4 {[%emt 0:00:16]} Bg7 {[%emt 0:00:03]} 3. Be3 {[%emt 0:02:44]} d6 {[%emt 0:00:10]} 4. Nd2 {[%emt 0:02:02]} a6 {[%emt 0:00:58]} 5. c3 {[%emt 0:02:16]} h6 {[%emt 0:04:00]} 6. Ngf3 {[%emt 0:02:23]} e6 {[%emt 0:01:33]} 7. Bd3 {[%emt 0:04:54]} Ne7 {[%emt 0:00:47]} 8. O-O {[%emt 0:01:32]} Nd7 {[%emt 0:00:38]} 9. Qc2 {[%emt 0:01:50]} b6 {[%emt 0:00:42]} 10. Rfe1 {[%emt 0:02:19]} Bb7 {[%emt 0:00:39]} 11. a4 {[%emt 0:01:43]} O-O {[%emt 0:06:59]} 12. Rad1 {[%emt 0:07:10]} Qc8 {[%emt 0:06:00]} 13. h3 {[%emt 0:05:33]} Kh7 {[%emt 0:04:12]} 14. Bf4 {[%emt 0:06:38]} e5 {[%emt 0:11:19]} 15. Bh2 {[%emt 0:01:04]} Nc6 {[%emt 0:02:33]} 16. dxe5 {[%emt 0:06:09]} dxe5 {[%emt 0:04:42]} 17. Nc4 {[%emt 0:05:08]} Qe8 {[%emt 0:03:00]} 18. b4 {[%emt 0:01:45]} f6 {[%emt 0:03:43]} 19. Ne3 {[%emt 0:05:03]} Ne7 {[%emt 0:05:53]} 20. Nd5 {[%emt 0:10:29]} Rc8 {[%emt 0:06:35]} 21. Bc4 {[%emt 0:08:17]} Nb8 {[%emt 0:02:53]} 22. Nxe7 {[%emt 0:00:53]} Qxe7 {[%emt 0:00:05]} 23. Bd5 {[%emt 0:02:29]} c6 {[%emt 0:01:21]} 24. Ba2 {[%emt 0:03:26]} Rcd8 {[%emt 0:00:55]} 25. Nh4 {[%emt 0:02:00]} Bc8 {[%emt 0:02:01]} 26. Bg3 {[%emt 0:02:19]} Nd7 {[%emt 0:02:42]} 27. f4 {[%emt 0:02:47]} exf4 {[%emt 0:02:56]} 28. Bxf4 {[%emt 0:00:01]} Ne5 {[%emt 0:00:09]} 29. Bg3 {[%emt 0:04:52]} b5 {[%emt 0:00:59]} 30. Rd4 {[%emt 0:02:25]} Be6 {[%emt 0:03:00]} 31. Red1 {[%emt 0:01:37]} Bxa2 {[%emt 0:00:20]} 32. Qxa2 {[%emt 0:00:01]} Nc4 {[%emt 0:00:10]} 33. Qe2 {[%emt 0:03:16]} Rxd4 {[%emt 0:25:00]} 34. cxd4 {[%emt 0:01:01]} h5 {[%emt 0:00:00]} 35. axb5 {[%emt 0:00:46]} axb5 {[%emt 0:00:00]} 36. Be1 {[%emt 0:00:33]} Re8 {[%emt 0:00:00]} 37. e5 {[%emt 0:00:19]} fxe5 {[%emt 0:00:00]} 38. dxe5 {[%emt 0:00:38]} Nxe5 {[%emt 0:00:00]} 0-1

[Event "36th Indian-ch U13 Girls 2023"]
[Site "Secunderabad"]
[Date "2023.12.09"]
[Round "10.7"]
[White "Nivedita V C"]
[Black "Aditi Arun"]
[Result "1-0"]
[ECO "D37"]
[WhiteElo "1638"]
[BlackElo "1447"]
[Annotator "NA RC"]
[PlyCount "81"]
[EventDate "2023.12.04"]
[EventType "swiss"]
[EventCountry "IND"]
[SourceTitle "playchess.com"]
[Source "ChessBase"]
[SourceQuality "1"]
[TimeControl "5400+30"]

1. d4 {[%emt 1:31:00]} d5 {[%emt 0:00:01]} 2. c4 {[%emt 0:00:00]} e6 {[%emt 0:00:02]} 3. Nc3 {[%emt 0:00:00]} Nf6 {[%emt 0:00:02]} 4. Bf4 {[%emt 0:00:00]} c6 {[%emt 0:00:03]} 5. e3 {[%emt 0:00:00]} Nbd7 {[%emt 0:00:04]} 6. Nf3 {[%emt 0:00:00]} Be7 {[%emt 0:00:05]} 7. Bd3 {[%emt 0:00:00]} dxc4 {[%emt 0:02:10]} 8. Bxc4 {[%emt 0:00:00]} b5 {[%emt 0:00:07]} 9. Bd3 {[%emt 0:00:00]} a6 {[%emt 0:00:15]} 10. O-O {[%emt 0:00:00]} O-O {[%emt 0:00:34]} 11. Ne4 {[%emt 0:00:00]} c5 {[%emt 0:08:55]} 12. dxc5 {[%emt 0:00:00]} Nxc5 {[%emt 0:00:37]} 13. Nxc5 {[%emt 0:00:00]} Bxc5 {[%emt 0:00:55]} 14. Qc2 {[%emt 0:00:00]} Bd6 {[%emt 0:03:35]} 15. Qc6 {[%emt 0:00:00]} Bxf4 {[%emt 0:00:36]} 16. Qxa8 {[%emt 0:00:00]} Qb6 {[%emt 0:02:00]} 17. Be4 {[%emt 0:00:00]} Bxe3 {[%emt 0:01:47]} 18. Qc6 {[%emt 0:00:00]} Qa7 {[%emt 0:01:42]} 19. Qc2 {[%emt 0:00:00]} Nxe4 {[%emt 0:02:18]} 20. Qxe4 {[%emt 0:00:00]} Bh6 {[%emt 0:00:54]} 21. Rad1 {[%emt 0:00:00]} Bb7 {[%emt 0:00:50]} 22. Rd7 {[%emt 0:00:00]} Qxf2+ {[%emt 0:01:24]} 23. Kxf2 {[%emt 0:00:00]} Bxe4 {[%emt 0:00:03]} 24. Rfd1 {[%emt 0:00:00]} Bd5 {[%emt 0:00:48]} 25. Nd4 {[%emt 0:00:00]} g6 {[%emt 0:09:16]} 26. Ra7 {[%emt 0:12:30]} Rc8 {[%emt 0:02:53]} 27. Rxa6 {[%emt 0:00:00]} Bg7 {[%emt 0:03:31]} 28. b3 {[%emt 0:00:00]} b4 {[%emt 0:04:06]} 29. g3 {[%emt 0:00:00]} Bf8 {[%emt 0:01:45]} 30. Rd2 {[%emt 0:00:00]} Bc5 {[%emt 0:01:41]} 31. Ke1 {[%emt 0:00:00]} Be4 {[%emt 0:22:20]} 32. Rd1 {[%emt 0:00:00]} e5 {[%emt 0:09:13]} 33. Nb5 {[%emt 0:00:00]} Bf3 {[%emt 0:02:54]} 34. Rd7 {[%emt 0:00:00]} Be3 {[%emt 0:01:32]} 35. Rc7 {[%emt 0:00:00]} Rxc7 {[%emt 0:11:59]} 36. Nxc7 {[%emt 0:00:00]} e4 {[%emt 0:03:05]} 37. Nd5 {[%emt 0:00:00]} Bc1 {[%emt 0:03:55]} 38. Rb6 {[%emt 0:00:00]} e3 {[%emt 0:00:07]} 39. Nxe3 {[%emt 0:00:00]} Bxe3 {[%emt 0:00:18]} 40. Rxb4 {[%emt 0:00:00]} Bg1 {[%emt 0:00:37]} 41. Kf1 {[%emt 0:00:00]} 1-0

[Event "36th Indian-ch U13 Girls 2023"]
[Site "Secunderabad"]
[Date "2023.12.09"]
[Round "10.8"]
[White "Modipalli Deekshitha"]
[Black "Shriyana S Mallya"]
[Result "1/2-1/2"]
[ECO "D36"]
[WhiteElo "1394"]
[BlackElo "1561"]
[Annotator "NA RC"]
[PlyCount "105"]
[EventDate "2023.12.04"]
[EventType "swiss"]
[EventCountry "IND"]
[SourceTitle "playchess.com"]
[Source "ChessBase"]
[SourceQuality "1"]
[TimeControl "5400+30"]

1. d4 {[%emt 0:00:01]} d5 {[%emt 0:00:13]} 2. c4 {[%emt 0:00:05]} e6 {[%emt 0:00:19]} 3. Nc3 {[%emt 0:00:06]} Nf6 {[%emt 0:00:13]} 4. cxd5 {[%emt 0:00:05]} exd5 {[%emt 0:00:10]} 5. Bg5 {[%emt 0:00:04]} c6 {[%emt 0:01:56]} 6. e3 {[%emt 0:00:03]} h6 {[%emt 0:00:16]} 7. Bh4 {[%emt 0:00:03]} Be7 {[%emt 0:00:26]} 8. Bd3 {[%emt 0:00:04]} O-O {[%emt 0:00:34]} 9. Nge2 {[%emt 0:00:12]} Re8 {[%emt 0:00:56]} 10. Qc2 {[%emt 0:00:14]} Nbd7 {[%emt 0:01:57]} 11. O-O {[%emt 0:00:17]} a5 {[%emt 0:01:46]} 12. a3 {[%emt 0:02:19]} b5 {[%emt 0:01:15]} 13. f3 {[%emt 0:04:45]} Nb6 {[%emt 0:08:38]} 14. b3 {[%emt 0:02:17]} Ba6 {[%emt 0:07:03]} 15. a4 {[%emt 0:10:20]} b4 {[%emt 0:02:51]} 16. Na2 {[%emt 0:01:11]} Bxd3 {[%emt 0:01:13]} 17. Qxd3 {[%emt 0:00:07]} c5 {[%emt 0:05:43]} 18. dxc5 {[%emt 0:01:30]} Bxc5 {[%emt 0:03:52]} 19. Nd4 {[%emt 0:00:17]} Nbd7 {[%emt 0:04:58]} 20. Rac1 {[%emt 0:04:55]} Qb6 {[%emt 0:04:15]} 21. Bf2 {[%emt 0:01:05]} Ne5 {[%emt 0:07:52]} 22. Qd2 {[%emt 0:00:56]} Rac8 {[%emt 0:02:30]} 23. Rfd1 {[%emt 0:01:56]} Qa6 {[%emt 0:12:41]} 24. Nb5 {[%emt 0:02:42]} Qb6 {[%emt 0:05:27]} 25. Nd4 {[%emt 0:06:15]} Nc6 {[%emt 0:05:14]} 26. Rc2 {[%emt 0:05:51]} Nxd4 {[%emt 0:04:16]} 27. exd4 {[%emt 0:00:10]} Bd6 {[%emt 0:00:09]} 28. Rdc1 {[%emt 0:08:26]} Rxc2 {[%emt 0:17:47]} 29. Rxc2 {[%emt 0:00:13]} Nh5 {[%emt 0:00:00]} 30. g3 {[%emt 0:00:43]} Nf6 {[%emt 0:00:00]} 31. Nc1 {[%emt 0:00:34]} Qa6 {[%emt 0:00:00]} 32. Nd3 {[%emt 0:00:55]} Rc8 {[%emt 0:00:00]} 33. Be3 {[%emt 0:03:31]} Rxc2 {[%emt 0:00:00]} 34. Qxc2 {[%emt 0:00:09]} Qb7 {[%emt 0:00:00]} 35. Kf2 {[%emt 0:01:19]} Qd7 {[%emt 0:00:53]} 36. Kg2 {[%emt 0:03:18]} Qe6 {[%emt 0:02:04]} 37. Qd2 {[%emt 0:00:53]} Qc8 {[%emt 0:00:40]} 38. Qc1 {[%emt 0:01:59]} Qf5 {[%emt 0:00:45]} 39. Qd2 {[%emt 0:00:17]} h5 {[%emt 0:00:20]} 40. Bg5 {[%emt 0:01:18]} g6 {[%emt 0:00:43]} 41. Qe3 {[%emt 0:03:16]} Nh7 {[%emt 0:00:24]} 42. Bf4 {[%emt 0:03:04]} Bxf4 {[%emt 0:00:16]} 43. Nxf4 {[%emt 0:00:06]} Nf6 {[%emt 0:00:31]} 44. Qd3 {[%emt 0:01:12]} Qd7 {[%emt 0:00:32]} 45. Qa6 {[%emt 0:01:27]} Qd8 {[%emt 0:00:29]} 46. Nd3 {[%emt 0:00:46]} Kg7 {[%emt 0:00:26]} 47. Nc5 {[%emt 0:00:33]} Qc7 {[%emt 0:00:52]} 48. Qb7 {[%emt 0:00:26]} Qd6 {[%emt 0:00:16]} 49. Qa7 {[%emt 0:01:07]} h4 {[%emt 0:00:33]} 50. g4 {[%emt 0:05:03]} Kg8 {[%emt 0:00:26]} 51. Qa8+ {[%emt 0:01:11]} Kg7 {[%emt 0:00:10]} 52. Qa7 {[%emt 0:01:24]} g5 {[%emt 0:01:00]} 53. Nd3 {[%emt 0:00:32]} 1/2-1/2

[Event "36th Indian-ch U13 Girls 2023"]
[Site "Secunderabad"]
[Date "2023.12.09"]
[Round "10.9"]
[White "Aamuktha Guntaka"]
[Black "Pratiti Khandelwal"]
[Result "1-0"]
[ECO "B38"]
[WhiteElo "1532"]
[BlackElo "1412"]
[Annotator "NA RC"]
[PlyCount "99"]
[EventDate "2023.12.04"]
[EventType "swiss"]
[EventCountry "IND"]
[SourceTitle "playchess.com"]
[Source "ChessBase"]
[SourceQuality "1"]
[TimeControl "5400+30"]

1. e4 {[%emt 0:00:23]} c5 {[%emt 0:00:13]} 2. Nf3 {[%emt 0:00:05]} Nc6 {[%emt 0:00:06]} 3. d4 {[%emt 0:00:07]} cxd4 {[%emt 0:00:04]} 4. Nxd4 {[%emt 0:00:05]} g6 {[%emt 0:00:05]} 5. c4 {[%emt 0:00:05]} Bg7 {[%emt 0:00:47]} 6. Be3 {[%emt 0:00:06]} Nf6 {[%emt 0:00:30]} 7. Nc3 {[%emt 0:00:06]} d6 {[%emt 0:00:10]} 8. Be2 {[%emt 0:00:16]} O-O {[%emt 0:00:37]} 9. O-O {[%emt 0:00:13]} Bd7 {[%emt 0:00:16]} 10. Qd2 {[%emt 0:00:31]} Nxd4 {[%emt 0:00:53]} 11. Bxd4 {[%emt 0:00:07]} Bc6 {[%emt 0:01:39]} 12. f3 {[%emt 0:00:44]} a5 {[%emt 0:01:03]} 13. b3 {[%emt 0:02:32]} Nd7 {[%emt 0:02:06]} 14. Bf2 {[%emt 0:01:26]} Nc5 {[%emt 0:00:52]} 15. Rab1 {[%emt 0:04:19]} Qb6 {[%emt 0:11:31]} 16. a3 {[%emt 0:11:35]} Qc7 {[%emt 0:02:20]} 17. Bd1 {[%emt 0:14:51]} Rfc8 {[%emt 0:05:35]} 18. b4 {[%emt 0:07:35]} axb4 {[%emt 0:02:46]} 19. axb4 {[%emt 0:00:06]} Na4 {[%emt 0:00:44]} 20. Ne2 {[%emt 0:18:23]} Bd7 {[%emt 0:10:46]} 21. Bb3 {[%emt 0:06:31]} Nb6 {[%emt 0:10:16]} 22. Rfc1 {[%emt 0:09:50]} Qd8 {[%emt 0:08:22]} 23. c5 {[%emt 0:05:27]} dxc5 {[%emt 0:03:39]} 24. bxc5 {[%emt 0:00:39]} Na4 {[%emt 0:02:59]} 25. Rd1 {[%emt 0:04:42]} Bc6 {[%emt 0:05:32]} 26. Bxf7+ {[%emt 0:03:22]} Kh8 {[%emt 0:02:57]} 27. Qg5 {[%emt 0:04:13]} Qf8 {[%emt 0:01:46]} 28. Be6 {[%emt 0:01:04]} Rd8 {[%emt 0:02:04]} 29. Qg4 {[%emt 0:03:34]} Rxd1+ {[%emt 0:01:33]} 30. Rxd1 {[%emt 0:00:05]} Nb2 {[%emt 0:01:00]} 31. Rb1 {[%emt 0:02:17]} Nd3 {[%emt 0:01:13]} 32. Be3 {[%emt 0:00:36]} Ne5 {[%emt 0:00:47]} 33. Qh3 {[%emt 0:00:27]} Rd8 {[%emt 0:02:29]} 34. Bf4 {[%emt 0:00:30]} Nd3 {[%emt 0:04:01]} 35. Be3 {[%emt 0:00:08]} Ne5 {[%emt 0:01:21]} 36. Qg3 {[%emt 0:00:34]} Qf6 {[%emt 0:04:32]} 37. Bb3 {[%emt 0:00:50]} Qf8 {[%emt 0:01:48]} 38. Bf4 {[%emt 0:00:31]} Nd3 {[%emt 0:01:12]} 39. Bc7 {[%emt 0:00:23]} Ra8 {[%emt 0:01:11]} 40. Bb6 {[%emt 0:00:36]} e5 {[%emt 0:02:30]} 41. Rd1 {[%emt 0:00:31]} Nxc5 {[%emt 0:00:27]} 42. Bd5 {[%emt 0:00:23]} Bxd5 {[%emt 0:01:57]} 43. exd5 {[%emt 0:00:29]} Qd6 {[%emt 0:00:44]} 44. Bxc5 {[%emt 0:00:14]} Qxc5+ {[%emt 0:00:03]} 45. Qf2 {[%emt 0:00:32]} Qd6 {[%emt 0:01:02]} 46. Nc3 {[%emt 0:00:24]} Rc8 {[%emt 0:01:15]} 47. Ne4 {[%emt 0:00:20]} Qd7 {[%emt 0:01:11]} 48. d6 {[%emt 0:00:56]} Rd8 {[%emt 0:02:12]} 49. Qb6 {[%emt 0:00:41]} Bf8 {[%emt 0:01:02]} 50. Nc5 {[%emt 0:00:28]} 1-0

[Event "36th Indian-ch U13 Girls 2023"]
[Site "Secunderabad"]
[Date "2023.12.09"]
[Round "10.10"]
[White "Singh Myra"]
[Black "Goddeti Hima Tejaswini"]
[Result "1-0"]
[ECO "B90"]
[WhiteElo "1454"]
[BlackElo "1507"]
[Annotator "NA RC"]
[PlyCount "109"]
[EventDate "2023.12.04"]
[EventType "swiss"]
[EventCountry "IND"]
[SourceTitle "playchess.com"]
[Source "ChessBase"]
[SourceQuality "1"]
[TimeControl "5400+30"]

1. e4 {[%emt 0:00:02]} c5 {[%emt 0:00:38]} 2. Nf3 {[%emt 0:00:06]} d6 {[%emt 0:00:43]} 3. d4 {[%emt 1:31:52]} cxd4 {[%emt 0:00:56]} 4. Nxd4 {[%emt 0:00:00]} Nf6 {[%emt 0:00:23]} 5. Nc3 {[%emt 0:00:00]} a6 {[%emt 0:00:55]} 6. Be3 {[%emt 0:00:00]} e5 {[%emt 0:00:45]} 7. Nf3 {[%emt 0:00:00]} Be7 {[%emt 0:01:11]} 8. Bc4 {[%emt 0:00:00]} Be6 {[%emt 0:03:14]} 9. Bxe6 {[%emt 0:00:00]} fxe6 {[%emt 0:00:03]} 10. O-O {[%emt 0:00:00]} O-O {[%emt 0:03:10]} 11. Na4 {[%emt 0:00:00]} Ng4 {[%emt 0:03:28]} 12. Qd3 {[%emt 0:00:00]} Nxe3 {[%emt 0:07:36]} 13. Qxe3 {[%emt 0:00:00]} Nd7 {[%emt 0:00:21]} 14. Qb3 {[%emt 0:00:00]} b5 {[%emt 0:01:29]} 15. Qxe6+ {[%emt 0:00:00]} Kh8 {[%emt 0:00:20]} 16. Nc3 {[%emt 0:00:00]} Nc5 {[%emt 0:02:01]} 17. Qd5 {[%emt 0:00:00]} Qc8 {[%emt 0:03:41]} 18. Rfe1 {[%emt 0:00:00]} Qg4 {[%emt 0:07:32]} 19. h3 {[%emt 0:00:00]} Qg6 {[%emt 0:00:24]} 20. Kh2 {[%emt 0:00:00]} Rac8 {[%emt 0:07:45]} 21. Qd2 {[%emt 0:00:00]} Ne6 {[%emt 0:07:11]} 22. Nd5 {[%emt 0:00:00]} Bd8 {[%emt 0:00:55]} 23. c3 {[%emt 0:00:00]} Rc4 {[%emt 0:05:31]} 24. Qe2 {[%emt 0:00:00]} Bg5 {[%emt 0:07:25]} 25. Nxg5 {[%emt 0:00:00]} Qxg5 {[%emt 0:04:10]} 26. f3 {[%emt 0:00:00]} Nf4 {[%emt 0:02:48]} 27. Nxf4 {[%emt 0:00:00]} Qxf4+ {[%emt 0:00:01]} 28. Kh1 {[%emt 0:00:00]} Rfc8 {[%emt 0:00:26]} 29. a3 {[%emt 0:00:00]} h5 {[%emt 0:02:04]} 30. Rad1 {[%emt 0:00:00]} R4c6 {[%emt 0:01:01]} 31. Rd3 {[%emt 0:00:00]} g5 {[%emt 0:00:40]} 32. Qf2 {[%emt 0:00:00]} Qf6 {[%emt 0:06:23]} 33. Kg1 {[%emt 0:00:00]} R8c7 {[%emt 0:02:46]} 34. Qe2 {[%emt 0:00:00]} Qf4 {[%emt 0:01:25]} 35. Red1 {[%emt 0:00:00]} Rd7 {[%emt 0:00:12]} 36. Rd5 {[%emt 0:00:00]} Kg8 {[%emt 0:01:34]} 37. Qd3 {[%emt 0:00:00]} Kf8 {[%emt 0:01:56]} 38. b3 {[%emt 0:00:00]} Ke7 {[%emt 0:00:59]} 39. c4 {[%emt 0:00:00]} bxc4 {[%emt 0:01:43]} 40. bxc4 {[%emt 0:00:00]} Qf6 {[%emt 0:00:14]} 41. c5 {[%emt 0:00:00]} Qe6 {[%emt 0:01:25]} 42. Qd2 {[%emt 0:00:00]} Qf6 {[%emt 0:01:29]} 43. a4 {[%emt 0:00:00]} h4 {[%emt 0:01:19]} 44. a5 {[%emt 0:00:00]} Qg6 {[%emt 0:00:41]} 45. cxd6+ {[%emt 0:00:01]} Kf6 {[%emt 0:03:00]} 46. Rxe5 {[%emt 0:01:48]} Rc2 {[%emt 0:05:55]} 47. Qxc2 {[%emt 0:00:30]} Kxe5 {[%emt 0:00:03]} 48. Qc5+ {[%emt 0:00:25]} Kf4 {[%emt 0:00:52]} 49. Kf2 {[%emt 0:00:40]} g4 {[%emt 0:01:34]} 50. hxg4 {[%emt 0:00:34]} Qf6 {[%emt 0:00:37]} 51. Rd2 {[%emt 0:00:55]} Rb7 {[%emt 0:01:15]} 52. g5 {[%emt 0:01:49]} Rb2 {[%emt 0:00:54]} 53. Qe3+ {[%emt 0:00:16]} Ke5 {[%emt 0:00:01]} 54. Qd4+ {[%emt 0:00:11]} Ke6 {[%emt 0:00:07]} 55. Qxf6+ {[%emt 0:16:34]} 1-0